Cogmind - Beta 13 X1 @@@ ROGUE MODE // 2023.10.03 @ 17:29:40 Player: Decinym Result: Destroyed by G-47 Trooper with Particle Gun Performance ------------- Evolutions (3) 1500 Regions Visited (10) 2000 Robots Destroyed (230) 1150 Value Destroyed (8220) 8220 Prototype IDs (46) 920 Alien Tech Used (0) 0 Bonus (5062) 5062 TOTAL SCORE: 18852 Bonus ------- Triggered High Security 500 High Alert Combat Kills 3689 Follower Combat Kills 373 Entered Garrisons 200 Aligned with FarCom 300 Cogmind --------- Core Integrity 0/700 Matter 70/300 Energy 26/100 System Corruption 7% Temperature Cool (9) Movement Walking (195) Ox1 Location -7/Factory Parts ------- > --- POWER (1) -------- (None) > --- PROPULSION (4) --- Improved Titanium Leg Advanced Myomer Leg > --- UTILITY (6) ------ Huge Storage Unit Advanced Terrain Scan Processor Experimental Targeting Computer > --- WEAPON (2) ------- (None) > --- INVENTORY (25) --- Nuclear Core Improved Treads Coolant Network Experimental Coolant Injector Experimental Energy Well (277) Advanced Transmission Jammer AS-neutralizer No. 17b Tesla Rifle Improved Spread Laser EM Pulse Cannon Improved EM Pulse Cannon Improved EM Pulse Cannon Rocket Array Rocket Array AD-0RF's Magmablaster Heavy Flail Peak State ------------ > --- POWER ------------ Neutrino Core > --- PROPULSION ------- Carbon-fiber Leg Carbon-fiber Leg Advanced Myomer Leg Advanced Myomer Leg > --- UTILITY ---------- Experimental Coolant Injector High-capacity Storage Unit Advanced Weapon Cycler Experimental Weapon Shielding > --- WEAPON ----------- Enhanced Gauss Cannon AD-0RF's Magmablaster > --- INVENTORY -------- Light Nuclear Core Armored Medium Treads Coolant Network Experimental Energy Well Makeshift Terrain Scanner Experimental Targeting Computer Experimental Targeting Computer Advanced Transmission Jammer AS-neutralizer No. 17b Tesla Rifle Improved Plasma Cutter Heavy Flail [Rating: 75] Favorites ----------- Power Heavy Ion Engine Engine Heavy Ion Engine Power Core Enhanced Nuclear Core Propulsion Light Treads Treads Light Treads Leg Advanced Myomer Leg Wheel Armored Huge Wheel Utility High-capacity Storage Unit Device Shield Generator Storage High-capacity Storage Unit Processor Experimental Targeting Computer Protection Light Armor Plating Weapon Improved Assault Rifle Energy Gun Improved Spread Laser Energy Cannon Heavy Particle Cannon Ballistic Gun Improved Assault Rifle Ballistic Cannon Bore Cannon Launcher Rocket Array Special Weapon AD-0RF's Magmablaster Impact Weapon Heavy Flail Build | -11 -10 -10 -9 -9 -9 -8 -8 -8 -8 -7 ------- Run | Jun Mat Min Mat Min Exi Min Mat Gar Mat Fac Slots Evolved 6 | . . . 2 . . . 2 . . 2 Power . | . . . . . . . . . . . Propulsion 2 | . . . 1 . . . 1 . . . Utility 4 | . . . 1 . . . 1 . . 2 Weapon . | . . . . . . . . . . . Parts Attached 224 | . 5 4 23 2 19 15 21 53 13 69 Power 17 | . . 1 2 . 2 2 . 5 1 4 Engine 9 | . . 1 2 . 2 1 . 1 . 2 Core 8 | . . . . . . 1 . 4 1 2 Reactor . | . . . . . . . . . . . Propulsion 52 | . 1 1 8 1 5 1 6 12 3 14 Treads 28 | . . . 7 1 5 . 4 4 . 7 Leg 14 | . 1 . . . . . . 8 3 2 Wheel 10 | . . 1 1 . . 1 2 . . 5 Hover . | . . . . . . . . . . . Flight . | . . . . . . . . . . . Utility 63 | . 1 . 7 . 8 4 8 8 5 22 Device 26 | . 1 . 2 . 5 2 4 4 2 6 Storage 8 | . . . 1 . 2 . 2 . . 3 Processor 9 | . . . 1 . 1 . . 2 1 4 Hackware . | . . . . . . . . . . . Protection 20 | . . . 3 . . 2 2 2 2 9 Artifact . | . . . . . . . . . . . Weapon 92 | . 3 2 6 1 4 8 7 28 4 29 Energy Gun 37 | . 2 . 2 . . . 4 9 2 18 Energy Cannon 3 | . . . . . . . 2 . 1 . Ballistic Gun 25 | . 1 1 3 1 3 7 . 8 1 . Ballistic Cannon 2 | . . . 1 . . . . 1 . . Launcher 16 | . . 1 . . 1 . . 3 . 11 Special Weapon 2 | . . . . . . 1 . 1 . . Impact Weapon 7 | . . . . . . . 1 6 . . Slashing Weapon . | . . . . . . . . . . . Piercing Weapon . | . . . . . . . . . . . Special Melee Weapon . | . . . . . . . . . . . Unidentified Prototypes 18 | . . . 1 . 4 3 5 . 1 4 Corrupted Parts 1 | . . . . . . . . 1 . . System Corruption 4 | . . . . . . . . 4 . . Parts Lost 56 | . 2 3 3 . 4 5 . 17 1 21 Power 6 | . . 1 . . . . . 1 1 3 Propulsion 20 | . 1 1 1 . 4 2 . 6 . 5 Utility 16 | . . . 1 . . 3 . 3 . 9 Weapon 14 | . 1 1 1 . . . . 7 . 4 Highest Loss Streak 9 | . 2 2 2 . 2 5 . 8 1 9 To Critical Strikes 5 | . . . . . 4 . . 1 . . Average Slot Usage (%) 95 | . 97 98 99 100 99 84 78 94 96 93 Engine 6 | . 14 14 11 11 11 4 9 3 . . Core 2 | . . . . . . 5 . 5 8 5 Treads 20 | . . . 24 33 32 21 11 24 . 15 Leg 5 | . 26 21 . . . . . 11 36 1 Wheel 4 | . . 6 8 . . 4 11 . . 8 Device 12 | . 13 14 7 11 10 10 14 17 11 14 Storage 9 | . 14 14 11 11 11 11 9 9 9 7 Processor 4 | . . . 3 . 4 3 . 1 6 10 Protection 7 | . . . 11 11 6 1 5 3 6 11 Energy Gun 8 | . 20 9 8 . . . 5 11 13 14 Ballistic Gun 10 | . 7 17 10 22 21 20 9 4 . . Naked Turns . | . . . . . . . . . . . Heaviest Build 115 | 13 14 14 42 39 60 80 76 77 72 115 Greatest Support 90 | 20 20 20 60 60 60 60 84 90 90 87 Greatest Overweight (x) 4 | . 1 1 2 . . 2 2 3 . 4 Average Overweight (x) . | . . . . . . 1 1 . . 1 Largest Inventory Capacity 25 | . 8 8 15 15 20 20 20 20 20 25 Average Capacity 18 | . 8 8 11 15 19 20 20 20 20 23 Most Carried 25 | . 8 8 15 15 20 20 20 20 20 25 Average Carried 17 | . 7 7 10 14 17 18 18 18 19 23 Final Capacity 25 | 8 8 8 15 15 20 20 20 20 20 25 Final Carried 20 | 6 7 8 15 15 20 20 20 19 20 17 Class Distribution -------------------- 65% | Mutant 34% | Scavenger-Mutant Dominant Class ---------------- Mutant | -10/Materials Mutant | -10/Mines Mutant | -9/Materials Mutant | -9/Mines Mutant | -9/Exiles Mutant | -8/Mines Scavenger-Mutant | -8/Materials Scavenger-Mutant | -8/Garrison Scavenger-Mutant | -8/Materials Mutant | -7/Factory Resources | -11 -10 -10 -9 -9 -9 -8 -8 -8 -8 -7 ----------- Run | Jun Mat Min Mat Min Exi Min Mat Gar Mat Fac Matter Collected 4008 | 200 50 58 595 68 479 401 433 780 140 804 Remotely . | . . . . . . . . . . . Salvage Created 8505 | . 218 165 825 140 273 202 609 1188 1017 3868 Parts 425 | . 6 10 53 15 18 16 35 57 40 175 Haulers Intercepted 10 | . . . 3 . . . 2 . 1 4 Recyclers Shooed 7 | . . 1 1 . . . . . 3 2 Parts Field Recycled . | . . . . . . . . . . . Retrieved Matter . | . . . . . . . . . . . Parts Self-Destructed . | . . . . . . . . . . . Prevented . | . . . . . . . . . . . Kills | -11 -10 -10 -9 -9 -9 -8 -8 -8 -8 -7 ------- Run | Jun Mat Min Mat Min Exi Min Mat Gar Mat Fac Combat Hostiles Destroyed 187 | . 7 6 16 4 1 2 11 27 17 96 Melee 1 | . . . . . . . 1 . . . Guns 123 | . 6 4 15 4 1 2 9 19 14 49 Cannons 5 | . . . 1 . . . . 2 2 . AOE 52 | . . 2 . . . . . 3 . 47 Classes Destroyed 17 | . 2 2 3 2 . 1 . 3 2 2 Worker 11 | . . . 1 . . . 1 . . 9 Builder 7 | . . . . 1 . . . . . 6 Tunneler 3 | . . 1 . . . 1 . . . 1 Hauler 10 | . . . 3 . . . 2 . 1 4 Recycler 12 | . . 1 1 . . . 1 . 1 8 Mechanic 7 | . . . . . . . . . . 7 Watcher 5 | . . . . . . . . 1 1 3 Swarmer 35 | . 3 6 3 2 . . 3 3 1 14 Grunt 84 | . 4 . 5 1 . . 6 11 13 44 Brawler 11 | . . . . . . . . 1 . 10 Duelist 11 | . . . . 1 . . . . . 10 Protector 5 | . . . . . . . . . . 5 Sentry 22 | . . . 8 . . . 2 7 . 5 Specialist 2 | . . . . . . . . . 2 . Hunter 8 | . . . . . . 1 . 4 . 3 Programmer 5 | . . . . . . . . 1 . 4 Heavy 2 | . . . . . . . . . 1 1 Best Kill Streak 25 | . 6 4 5 2 1 1 4 9 5 25 Combat Bots Only 21 | . 6 3 5 2 1 1 3 9 5 21 Max Kills in Single Turn 10 | . 1 3 2 1 1 1 1 1 2 10 Gunslinging 1 | . . . 1 . . . . . 1 1 Exploded 6 | . . 2 . . . . . 1 . 6 Melee 1 | . . . . . . . 1 . . . Uniques/NPCs Destroyed 5 | . . . . . 4 1 . . . . EX-BIN (-9/Exiles) EX-DEC (-9/Exiles) EX-HEX (-9/Exiles) 8R-AWN (-9/Exiles) AD-0RF (-8/Mines) Combat | -11 -10 -10 -9 -9 -9 -8 -8 -8 -8 -7 -------- Run | Jun Mat Min Mat Min Exi Min Mat Gar Mat Fac Damage Taken 13488 | . 490 299 600 93 827 1148 835 2913 912 5371 Core 1700 | . 113 80 109 6 61 93 56 342 134 706 Absorbed by Shields 834 | . . . . 36 310 83 . 84 . 321 Redirected to Shielding 95 | . . . . . . . . 95 . . Core Remaining (%) 39 | 100 . 22 . . . 32 . . 3 . Volleys Fired 523 | . 24 26 42 11 49 32 46 93 52 148 Largest 2 | . 2 2 2 2 2 2 2 2 2 2 Hottest 277 | . 90 70 130 46 46 220 91 277 131 155 Shots Fired 990 | . 48 47 80 22 97 57 92 172 105 270 Gun 914 | . 48 46 70 22 97 56 83 156 85 251 Cannon 48 | . . . 10 . . . 9 9 20 . Launcher 23 | . . 1 . . . . . 3 . 19 Special 5 | . . . . . . 1 . 4 . . Kinetic 384 | . 5 29 39 22 97 56 79 55 2 . Thermal 497 | . 43 17 41 . . 1 9 32 103 251 Explosive 23 | . . 1 . . . . . 3 . 19 Electromagnetic 86 | . . . . . . . 4 82 . . Robot Hit Streak 47 | . 14 3 14 11 42 47 15 18 12 26 Robot Miss Streak 9 | . 1 4 7 1 2 3 2 4 3 9 Penetration Max . | . . . . . . . . . . . Secondary Targets 24 | . 3 1 1 1 . . 1 6 4 7 Max Gunslinging Chain 1 | . 1 1 1 1 . . 1 1 1 1 Shots Hit Robots 758 | . 37 21 65 17 84 41 66 119 63 245 Core Hits 819 | . 12 11 57 7 18 12 21 59 31 591 Critical Kills 5 | . . . 2 . . 1 . . 2 . Critical Parts Destroyed 5 | . . . 1 . . 1 2 1 . . Critical Strikes 21 | . 4 . 3 . . 5 2 4 3 . Burn 6 | . 4 . . . . . . 1 1 . Meltdown 2 | . . . . . . . . . 2 . Destroy 8 | . . . 3 . . 5 . . . . Blast 2 | . . . . . . . . 2 . . Smash 3 | . . . . . . . 2 1 . . Melee Attacks 26 | . . . . . . . 11 15 . . Impact 26 | . . . . . . . 11 15 . . Slashing . | . . . . . . . . . . . Piercing . | . . . . . . . . . . . Sneak Attacks 2 | . . . . . . . 1 1 . . Combat Hostiles . | . . . . . . . . . . . Follow-up Attacks . | . . . . . . . . . . . Damage Inflicted 22854 | . 438 401 918 253 1271 619 1410 2597 1357 13590 Guns 12711 | . 438 198 832 253 1271 607 884 1668 1022 5538 Cannons 709 | . . . 86 . . . 122 176 325 . Explosions 8711 | . . 199 . . . . . 460 . 8052 Melee 528 | . . . . . . . 404 124 . . Ramming 14 | . . 4 . . . . . . 10 . Kinetic 4189 | . 29 110 434 253 1271 607 832 653 . . Thermal 8973 | . 409 88 484 . . 12 122 531 1347 5980 Explosive 8162 | . . 199 . . . . . 353 . 7610 Electromagnetic 988 | . . . . . . . 52 936 . . Impact 528 | . . . . . . . 404 124 . . Slashing . | . . . . . . . . . . . Piercing . | . . . . . . . . . . . Highest Corruption 6 | . . . . . . . . 5 5 6 Average Corruption 3 | . . . . . . . . 4 5 2 Corruption Purged . | . . . . . . . . . . . Corruption Blocked . | . . . . . . . . . . . Effects 62 | . . . . . . . . 24 17 21 Message Errors 14 | . . . . . . . . 5 5 4 Matter Fused 17 | . . . . . . . . 6 2 9 Heat Flow Errors 7 | . . . . . . . . 4 1 2 Energy Discharges 7 | . . . . . . . . 3 2 2 Data Loss (minor) 10 | . . . . . . . . 4 2 4 Data Loss (major) 2 | . . . . . . . . 1 1 . Misfires 3 | . . . . . . . . 1 2 . Alerts 1 | . . . . . . . . . 1 . Weapon Failures 1 | . . . . . . . . . 1 . Overload Shots . | . . . . . . . . . . . Overflow Damage 418 | . . . . . . . 104 89 . 225 Projectiles . | . . . . . . . . . . . Explosions 225 | . . . . . . . . . . 225 Melee 193 | . . . . . . . 104 89 . . Knockbacks 4 | . . . . . . . 1 3 . . Impact 1 | . . . . . . . 1 . . . Kinetic 3 | . . . . . . . . 3 . . Secondary . | . . . . . . . . . . . Self-Inflicted Damage 931 | . . 2 . . . . . 33 . 896 Shots 28 | . . . . . . . . 1 . 27 Rammed 2 | . . 1 . . . . 1 . . . Targets Rammed 5 | . . 1 . . . . 1 . 3 . Kicked 3 | . . . . . . . . . 3 . Crushed . | . . . . . . . . . . . Highest Temperature 641 | . 120 20 274 2 . 641 327 283 246 288 Average Temperature 93 | . 47 8 83 2 . 307 133 89 71 37 Received Heat Transfer 4986 | . 201 . 219 10 . 1680 540 739 399 1198 Effects 26 | . . . . . . 23 1 . . 2 Shutdowns 1 | . . . . . . 1 . . . . Energy Bleed 7 | . . . . . . 5 1 . . 1 Interference 5 | . . . . . . 4 . . . 1 Matter Decay 2 | . . . . . . 2 . . . . Short Circuit 4 | . . . . . . 4 . . . . Damage (minor) 1 | . . . . . . 1 . . . . Damage (major) 6 | . . . . . . 6 . . . . Siege Activations . | . . . . . . . . . . . Robots Corrupted 2 | . . . . . . . . 2 . . Combat Hostiles 2 | . . . . . . . . 2 . . Parts Fried 7 | . . . . . . . . 7 . . Impact Corruptions 9 | . . . . . . . 4 4 1 . Robots Melted 4 | . 1 . . . . . . 1 2 . Combat Hostiles 3 | . 1 . . . . . . 1 1 . Parts Melted 20 | . 8 . . . . . . 2 4 6 Heat Transferred 12148 | . 1386 259 575 . . 80 222 1856 2516 5254 Parts Sabotaged . | . . . . . . . . . . . Parts Stolen . | . . . . . . . . . . . Parts Stripped . | . . . . . . . . . . . Power Chain Reactions 1 | . . . . . . . . 1 . . Missiles Intercepted . | . . . . . . . . . . . Alert | -11 -10 -10 -9 -9 -9 -8 -8 -8 -8 -7 ------- Run | Jun Mat Min Mat Min Exi Min Mat Gar Mat Fac Peak Influence 2802 | . 150 201 213 238 . 35 266 784 966 2802 Initial 438 | . . 58 . 24 . . 2 15 382 438 Average 518 | . 52 96 93 35 . 14 94 462 763 1049 Maximum Alert Level 5 | . . 1 1 1 . . 1 3 3 5 Low Security (%) 41 | . 100 79 92 98 . 100 92 9 . . Level 1 6 | . . 20 7 1 . . 7 22 6 . Level 2 28 | . . . . . . . . 62 20 51 Level 3 8 | . . . . . . . . 5 72 7 Level 4 8 | . . . . . . . . . . 24 Level 5 . | . . . . . . . . . . 2 High Security 4 | . . . . . . . . . . 13 Max Security . | . . . . . . . . . . . Squads Dispatched 40 | . . . 1 . . . 2 . 5 32 Investigation 4 | . . . . . . . 1 . 2 1 Extermination 3 | . . . . . . . . . . 3 Reinforcement 11 | . . . 1 . . . 1 . 3 6 Assault 19 | . . . . . . . . . . 19 Garrison 3 | . . . . . . . . . . 3 Intercept . | . . . . . . . . . . . Searches Triggered . | . . . . . . . . . . . Construction Impeded 2 | . . . . . . . . . . 2 Haulers Reinforced 1 | . . . . . . . . . . 1 Active Scanning Responses . | . . . . . . . . . . . Cargo Convoy Interrupts . | . . . . . . . . . . . Stealth | -11 -10 -10 -9 -9 -9 -8 -8 -8 -8 -7 --------- Run | Jun Mat Min Mat Min Exi Min Mat Gar Mat Fac Distress Signals 5 | . 1 . . . . . . 1 3 . Communications Jammed 37 | . . . . . . . . . . 37 Distress Signals 37 | . . . . . . . . . . 37 Times Spotted 287 | . 9 7 22 10 8 2 14 30 34 151 Peak Tracking Total 18 | . 7 3 5 3 9 2 4 9 6 18 Tactical Retreats 7 | . . 1 . . . . . 1 . 5 Traps | -11 -10 -10 -9 -9 -9 -8 -8 -8 -8 -7 ------- Run | Jun Mat Min Mat Min Exi Min Mat Gar Mat Fac Traps Triggered 6 | . . . . . . . 1 . 1 4 Indirectly . | . . . . . . . . . . . Trap Hack Attempts . | . . . . . . . . . . . Triggered . | . . . . . . . . . . . Disarmed . | . . . . . . . . . . . Reprogrammed . | . . . . . . . . . . . Reused . | . . . . . . . . . . . Traps Extracted . | . . . . . . . . . . . Installed . | . . . . . . . . . . . Triggered . | . . . . . . . . . . . Machines | -11 -10 -10 -9 -9 -9 -8 -8 -8 -8 -7 ---------- Run | Jun Mat Min Mat Min Exi Min Mat Gar Mat Fac Machines Disabled 23 | . . . . . 3 . . 4 3 13 Max in Single Turn 4 | . . . . . 1 . . 1 1 4 Garrison Access 1 | . . . . . . . . . . 1 Garrison Relay 2 | . . . . . . . . 2 . . Machines Repaired . | . . . . . . . . . . . Machines Sabotaged . | . . . . . . . . . . . Overloaded Fab Kills . | . . . . . . . . . . . Hacking | -11 -10 -10 -9 -9 -9 -8 -8 -8 -8 -7 --------- Run | Jun Mat Min Mat Min Exi Min Mat Gar Mat Fac Machines Accessed 29 | . 1 . 4 . 2 . 5 2 4 11 Terminals 16 | . 1 . 4 . . . 3 2 2 4 Fabricators 4 | . . . . . . . . . . 4 Repair Stations 2 | . . . . . . . . . 1 1 Recycling Units . | . . . . . . . . . . . Scanalyzers 2 | . . . . . . . 1 . . 1 Garrison Access 3 | . . . . . . . 1 . 1 1 Total Hacks 78 | . 2 . 20 . 3 . 15 5 11 22 Successful 34 | . . . 11 . 3 . 11 1 1 7 Failed 44 | . 2 . 9 . . . 4 4 10 15 Catastrophic 8 | . . . . . . . 1 . 3 4 Database Lockouts . | . . . . . . . . . . . Manual 40 | . . . 11 . 1 . 6 . 8 14 Terminals 51 | . 2 . 20 . . . 9 5 5 10 Fabricators 8 | . . . . . . . . . . 8 Repair Stations 5 | . . . . . . . . . 3 2 Recycling Units . | . . . . . . . . . . . Scanalyzers 5 | . . . . . . . 4 . . 1 Garrison Access 6 | . . . . . . . 2 . 3 1 Terminal Hacks 18 | . . . 9 . 3 . 5 1 . . Record 2 | . . . . . 2 . . . . . Prototype ID Bank 1 | . . . 1 . . . . . . . Branch Access Points 1 | . . . 1 . . . . . . . Alert Level 1 | . . . . . . . 1 . . . Unreport Threat 2 | . . . 1 . . . 1 . . . Transport Status 1 | . . . 1 . . . . . . . Recall Investigation 1 | . . . . . . . 1 . . . Hauler Manifests 1 | . . . 1 . . . . . . . Zone Layout 6 | . . . 4 . . . 2 . . . Garrison Registry 1 | . . . . . . . . 1 . . Derelict Proto ID Bank 1 | . . . . . 1 . . . . . Fabricator Hacks . | . . . . . . . . . . . Repair Station Hacks 2 | . . . . . . . . . 1 1 Scan Component 2 | . . . . . . . . . 1 1 Recycling Unit Hacks . | . . . . . . . . . . . Scanalyzer 5 | . . . . . . . 4 . . 1 Insert Component 4 | . . . . . . . 3 . . 1 Analyze 1 | . . . . . . . 1 . . . Garrison Access Hacks 2 | . . . . . . . 1 . . 1 Unlock Access 1 | . . . . . . . 1 . . . Seal Access 1 | . . . . . . . . . . 1 Unauthorized Hacks 7 | . . . 2 . . . 1 . . 4 Terminals 6 | . . . 2 . . . 1 . . 3 Botnet 6 | . . . 2 . . . 1 . . 3 Fabricators 1 | . . . . . . . . . . 1 Haulers 1 | . . . . . . . . . . 1 Repair Stations . | . . . . . . . . . . . Recycling Units . | . . . . . . . . . . . Scanalyzers . | . . . . . . . . . . . Garrison Access . | . . . . . . . . . . . Data Cores Recovered . | . . . . . . . . . . . Used . | . . . . . . . . . . . Hacking Detections 26 | . 1 . 4 . . . 5 2 4 10 Full Trace Events 3 | . . . . . . . . 1 2 . Feedback Events . | . . . . . . . . . . . Feedback Blocked . | . . . . . . . . . . . Robot Schematics Acquired . | . . . . . . . . . . . Robots Built . | . . . . . . . . . . . Authchips . | . . . . . . . . . . . Time . | . . . . . . . . . . . Total Robot Build Rating . | . . . . . . . . . . . Part Schematics Acquired 1 | . . . . . . . 1 . . . Parts Built . | . . . . . . . . . . . Authchips . | . . . . . . . . . . . Time . | . . . . . . . . . . . Total Part Build Rating . | . . . . . . . . . . . Parts Repaired . | . . . . . . . . . . . Time . | . . . . . . . . . . . Parts Recycled . | . . . . . . . . . . . Recycled Matter . | . . . . . . . . . . . Retrieved Matter . | . . . . . . . . . . . Retrieved Components . | . . . . . . . . . . . Parts Scanalyzed 1 | . . . . . . . 1 . . . Part Schematics Acquired 1 | . . . . . . . 1 . . . Parts Damaged . | . . . . . . . . . . . Bothacking | -11 -10 -10 -9 -9 -9 -8 -8 -8 -8 -7 ------------ Run | Jun Mat Min Mat Min Exi Min Mat Gar Mat Fac Used RIF Installer . | . . . . . . . . . . . Robots Hacked . | . . . . . . . . . . . Non-combat . | . . . . . . . . . . . Combat . | . . . . . . . . . . . Robot Hacks Applied . | . . . . . . . . . . . Relay Couplers Released 12 | . . . . . . . . 11 . 1 Machine Destruction 9 | . . . . . . . . 8 . 1 Programmers 3 | . . . . . . . . 3 . . Fabnet Peak Effective % . | . . . . . . . . . . . Robots Rewired 3 | . . . . . . . . 3 . . Allies Hacked . | . . . . . . . . . . . Hacks Repelled . | . . . . . . . . . . . Allies | -11 -10 -10 -9 -9 -9 -8 -8 -8 -8 -7 -------- Run | Jun Mat Min Mat Min Exi Min Mat Gar Mat Fac Total Allies 7 | . . . . 3 . . . 4 . . Largest Group 3 | . . . . 3 2 . . 2 3 . Highest-Rated Group 72 | . . . . 40 24 . . 48 72 . Highest-Rated Ally 25 | . . . . 16 16 . . 25 24 . Total Orders 2 | . . . . . 2 . . . . . STAY 2 | . . . . . 2 . . . . . Ally Attacks 130 | . . . . 24 50 . . 4 52 . Total Damage 3980 | . . . . 261 2445 . . 137 1137 . Kills 32 | . . . . 4 17 . . . 11 . Allies Corrupted . | . . . . . . . . . . . Allies Melted . | . . . . . . . . . . . Turrets Deployed 3 | . . . . . 3 . . . . . Intel | -11 -10 -10 -9 -9 -9 -8 -8 -8 -8 -7 ------- Run | Jun Mat Min Mat Min Exi Min Mat Gar Mat Fac Robot Analysis Total . | . . . . . . . . . . . Derelict Logs Recovered 3 | . . . . 3 . . . . . . Drone Launches . | . . . . . . . . . . . Drone Recoveries . | . . . . . . . . . . . Exploration | -11 -10 -10 -9 -9 -9 -8 -8 -8 -8 -7 ------------- Run | Jun Mat Min Mat Min Exi Min Mat Gar Mat Fac Turns Passed 10447 | . 210 417 968 1057 2086 308 632 1273 570 2926 Spaces Moved 5529 | 1 105 315 524 636 1150 105 277 603 318 1495 Core . | . . . . . . . . . . . Treads 3241 | . . . 419 636 1150 32 61 401 . 542 Legs 871 | 1 105 158 . . . . . 202 318 87 Wheels 1417 | . . 157 105 . . 73 216 . . 866 Hover . | . . . . . . . . . . . Flight . | . . . . . . . . . . . Fastest Speed 80 | 120 120 95 80 160 160 115 115 120 105 108 Average Speed 146 | 120 122 107 147 160 160 158 129 144 110 150 Slowest Speed 330 | 120 190 120 160 160 160 320 320 330 120 247 Overloaded Moves . | . . . . . . . . . . . Propulsion Burnouts . | . . . . . . . . . . . Robots Hopped 2 | . . . . . 2 . . . . . Cave-ins Triggered . | . . . . . . . . . . . Exploration Rate (%) 49 | 2 26 67 44 99 89 24 35 62 43 49 Regions Visited 10 Branch Regions 4 Pre-discovered Areas 1 | . . . . . 1 . . . . . Known Exits Taken 2 | . . . 1 . . . 1 . . . Unknown Exits Taken 7 | 1 1 1 . 1 1 1 . . 1 . Scrap Searched 2 | . . 1 . 1 . . . . . . Spaces Dug 10 | . . . . . . 4 . 6 . . Terrain Destroyed 386 | . . 8 6 . . 20 . 12 7 333 Melee 3 | . . . . . . . . 3 . . Projectile 33 | . . . 6 . . 18 . 2 7 . AOE 348 | . . 8 . . . . . 7 . 333 Terrain Rammed . | . . . . . . . . . . . Walls Destroyed . | . . . . . . . . . . . Machines Disabled . | . . . . . . . . . . . Actions | -11 -10 -10 -9 -9 -9 -8 -8 -8 -8 -7 --------- Run | Jun Mat Min Mat Min Exi Min Mat Gar Mat Fac Total 6957 | . 138 351 652 655 1305 187 473 860 447 1889 Wait 322 | . 2 2 18 2 42 21 93 14 36 92 Move 5516 | . 104 314 523 635 1145 104 277 602 317 1495 Hop 2 | . . . . . 2 . . . . . Pick Up 116 | . 2 3 20 2 22 7 6 11 8 35 Fast Attach 77 | . 3 1 10 . 6 4 10 16 9 18 Attach 67 | . 1 3 5 1 6 3 9 14 3 22 Detach 19 | . . 1 1 . 2 1 5 5 2 2 Swap 80 | . 1 . 8 1 7 8 2 23 1 29 Drop 151 | . 1 . 25 3 24 7 13 14 16 48 Fire 523 | . 24 26 42 11 49 32 46 93 52 148 Melee 26 | . . . . . . . 11 15 . . Ram 2 | . . 1 . . . . 1 . . . Kick 3 | . . . . . . . . . 3 . Crush . | . . . . . . . . . . . Escape Stasis . | . . . . . . . . . . . Rewire 53 | . . . . . . . . 53 . . Trap . | . . . . . . . . . . . Miscellaneous . | . . . . . . . . . . . Route ------- -11/Junkyard -10/Materials -10/Mines (discovered 2 exits: *Mat / [*Sub]) -9/Materials (discovered 3 exits: *Mat / *Min x2) -9/Mines (discovered 4 exits: *Mat x2 / *Exi / [*Zio]) -9/Exiles -8/Mines -8/Materials (discovered 4 exits: *Fac / Sto x2 / Gar) -8/Garrison (discovered 4 exits: *Mat x4) -8/Materials -7/Factory (discovered 4 exits: *Fac x3 / [*Low]) History --------- Turn | Location | Event 1 | -11/Junkyard | Discovered new exit (range 0) 1 | -11/Junkyard | Entered Materials 193 | -10/Materials | Discovered new exit (range 16) 211 | -10/Materials | Entered Mines 260 | -10/Mines | Received a Rocket Launcher from a helpful Derelict 300 | -10/Mines | Discovered new exit (range 13) 314 | -10/Mines | Build established: Mutant 418 | -10/Mines | Core integrity fell below 50% 515 | -10/Mines | Discovered new exit (range 13) 557 | -10/Mines | A weapon hastily lodged in a ceiling crevice suddenly fell to the ground 581 | -10/Mines | Assembled infested the area 586 | -10/Mines | Assisted by a Guerilla fighting off Assembled 628 | -10/Mines | Entered Materials 628 | -9/Materials | Evolved 2 slots: Propulsion x1, Utility x1 723 | -9/Materials | Discovered new exit (range 14) 897 | -9/Materials | Discovered new exit (range 15) 958 | -9/Materials | Identified exit to Mines 983 | -9/Materials | Discovered new exit (range 7) 1339 | -9/Materials | Build established: Scavenger-Mutant 1596 | -9/Materials | Entered Mines 1691 | -9/Mines | Learned location of 1 exit from Lower Caves 1704 | -9/Mines | Build established: Mutant 1790 | -9/Mines | Assisted by bots powering up and referring to "LRC-V3" 2118 | -9/Mines | Discovered new exit (range 9) 2185 | -9/Mines | Joined a pair of Derelicts in attacking an 0b10 outpost 2255 | -9/Mines | Discovered new exit (range 15) 2521 | -9/Mines | A Derelict revealed a hidden shortcut to a safe place 2539 | -9/Mines | Learned location of 1 exit from Materials 2643 | -9/Mines | Deemed a non-threat by the Exiles lab entrance 2643 | -9/Mines | Discovered new exit (range 5) 2653 | -9/Mines | Entered Exiles 2653 | -9/Exiles | Accompanied by 2 allies 2692 | -9/Exiles | Met 8R-AWN 2719 | -9/Exiles | Met EX-HEX 2764 | -9/Exiles | Met EX-BIN 2788 | -9/Exiles | Aligned with FarCom system 2789 | -9/Exiles | Given EX-Vault access code 2828 | -9/Exiles | Opened EX-Vault 2839 | -9/Exiles | Found Deploy-a-Sentry 2842 | -9/Exiles | Found Deploy-a-Sentry 2844 | -9/Exiles | Found Deploy-a-Sentry 2876 | -9/Exiles | Warned to stay clear of 0b10 Research branches 2930 | -9/Exiles | Met EX-DEC 2938 | -9/Exiles | Learned location of Zion (-7) 3180 | -9/Exiles | Visited The Gauntlet 3765 | -9/Exiles | DAS Turret deployed 3834 | -9/Exiles | DAS Turret deployed 3836 | -9/Exiles | DAS Turret deployed 3888 | -9/Exiles | Attacked by the Exiles 3916 | -9/Exiles | Allies destroyed EX-BIN 3919 | -9/Exiles | Allies destroyed EX-DEC 3921 | -9/Exiles | Allies destroyed EX-HEX 4104 | -9/Exiles | Destroyed 8R-AWN 4116 | -9/Exiles | Found Prototype Protection 4121 | -9/Exiles | Found Prototype Device 4121 | -9/Exiles | Identified AS-neutralizer No. 17b 4141 | -9/Exiles | Found Prototype Ballistic Gun 4149 | -9/Exiles | Found Prototype Ballistic Gun 4568 | -9/Exiles | Found Prototype Processor 4721 | -9/Exiles | Discovered new exit (range 14) 4739 | -9/Exiles | Entered Mines 4739 | -8/Mines | Identified 8R-AWN's Boregun (x2) 4816 | -8/Mines | AD-0RF came to Exiles' defense 4821 | -8/Mines | Core integrity fell below 50% 4893 | -8/Mines | Destroyed AD-0RF 4912 | -8/Mines | Lost 5 parts (2n3u) 4924 | -8/Mines | Found Prototype Special Weapon 4924 | -8/Mines | Identified AD-0RF's Magmablaster 4945 | -8/Mines | Found Prototype Processor 4970 | -8/Mines | Found Prototype Device 5036 | -8/Mines | Discovered new exit (range 11) 5047 | -8/Mines | Entered Materials 5047 | -8/Materials | Evolved 2 slots: Propulsion x1, Utility x1 5048 | -8/Materials | Identified exit to Storage 5183 | -8/Materials | Identified Exp. Thermal Shield 5183 | -8/Materials | Identified Exp. Targeting Computer (x2) 5432 | -8/Materials | Build established: Scavenger-Mutant 5617 | -8/Materials | Discovered new exit (range 16) 5679 | -8/Materials | Identified exit to Garrison 5679 | -8/Materials | Entered Garrison 5724 | -8/Garrison | Triggered checkpoint 5775 | -8/Garrison | Discovered new exit (range 77) 5775 | -8/Garrison | Discovered new exit (range 43) 5775 | -8/Garrison | Discovered new exit (range 62) 5775 | -8/Garrison | Discovered new exit (range 17) 5795 | -8/Garrison | Garrison Relay disabled 5838 | -8/Garrison | Rescued a captive Derelict 5988 | -8/Garrison | Triggered checkpoint 5992 | -8/Garrison | Triggered checkpoint 6104 | -8/Garrison | Lost 7 parts (1p1n1u4w) 6167 | -8/Garrison | Destroyed 9 combat bots 6300 | -8/Garrison | Garrison Relay disabled 6438 | -8/Garrison | Triggered checkpoint 6533 | -8/Garrison | Core integrity fell below 50% 6584 | -8/Garrison | Lost 8 parts (3n2u3w) 6882 | -8/Garrison | Triggered checkpoint 6952 | -8/Garrison | Entered Materials 6952 | -8/Materials | Accompanied by 3 allies 7243 | -8/Materials | Core integrity fell below 20% 7514 | -8/Materials | Discovered new exit (range 8) 7522 | -8/Materials | Entered Factory 7522 | -7/Factory | Evolved 2 slots: Utility x2 7635 | -7/Factory | Garrison activated, responded to threat 8225 | -7/Factory | Build established: Mutant 8625 | -7/Factory | Found Prototype Launcher 8625 | -7/Factory | Identified Rocket Array 8630 | -7/Factory | Found Rocket Array 8722 | -7/Factory | First assault squad dispatched 9056 | -7/Factory | Destroyed 7 combat bots 9603 | -7/Factory | Discovered new exit (range 15) 9664 | -7/Factory | Identified exit to Factory 9844 | -7/Factory | Discovered exit to Factory (range 12) 10052 | -7/Factory | High security lockdown imminent 10068 | -7/Factory | Discovered exit to Factory (range 12) 10132 | -7/Factory | High security lockdown engaged 10173 | -7/Factory | Found Rocket Array 10175 | -7/Factory | Found Rocket Array 10319 | -7/Factory | Destroyed 13 combat bots 10357 | -7/Factory | Core integrity fell below 50% 10385 | -7/Factory | Lost 4 parts (3u1w) 10417 | -7/Factory | Discovered new exit (range 13) 10430 | -7/Factory | Destroyed 21 combat bots 10440 | -7/Factory | Core integrity fell below 20% 10448 | -7/Factory | Destroyed by G-47 Trooper with Particle Gun Last Messages --------------- 10433_ C-30 ARC bursts open, deploying its payload. 10433_ H-55 Commando unfolds itself. 10433_ P-60 Hacker unfolds itself. 10433_ H-55 Commando unfolds itself. 10433_ I-36 Angel unfolds itself. 10433_ Penetrated by Slug. 10433_ Imp. Spread Laser destroyed. 10434_ C-30 ARC bursts open, deploying its payload. 10434_ H-55 Commando unfolds itself. 10434_ P-60 Hacker unfolds itself. 10434_ M-28 Smith unfolds itself. 10434_ Slug penetrates Fabricator. 10435_ Imp. Cooling System destroyed. 10437_ M-28 Smith repairs G-50 Soldier. 10437_ Imp. Shield Generator destroyed. 10438_ Gatling Laser destroyed. 10440_ M-28 Smith repairs Lgt. Angular Momentum Engine. 10443_ Arm. Huge Wheel destroyed. 10443_ Critical hit (Burn: +37). 10446_ Penetrated by Slug. Map ----- +----------------------------------------------------+ | """ ##?###?##?######### # | | #???##??####### # | | ###### """ """ #??#??###?##?## # # | | ?????# """ """ #?##?#######?## = ### | | ?????# """ """ #???#?#?##?#### """ ! ### | | ?????# """ """?? ??????######### """"" ### | | ?????# ?????????#?####### """"" / ### | | ?????# """ """?? ???#?########## #?# | | ?????# """ """?? #???#?######### """ ### | | ?????# """ ""??? ??? ?? ?# """"" % ## | | ?????# ????????? ?? ## """"" % ## | | ????? ????? ???? ? ## [ # | | ????? """ ??????# ???? ? # | | ????? """ "???????? ? ## # =%[ | | ????? ""?????????? ? ?"?" # # | | ????? "????????????? ?"""" # | | ?????# ???????????? ? ?""" # | | ?????? "??????????????? ??"?"? # | | ?????? "????????????? ? """" ## # ""# | | ?????? ???????????????? ??""" ## # " | | ???????????????????????? ?? #### # "" | | ???????????????????################# "" | | ??????????????"????# ######## %% "" | | ??????????????""" # [* """ | | ??????????????""" =%[ "## | | ??????????????""" @ %* ##? ? | | ?????????? %